bitfinex-derivatives/quotes_BNBF0:USTF0_20250608
["timestamp","ask_amount","ask_price","bid_price","bid_amount"]
[1749374301474,1.06622762,648.47,647.35,0.38]
[1749374301678,1.06622762,648.52,647.35,0.38]
[1749374301883,1.06622762,648.51,647.35,0.38]
[1749374302077,1.06622762,648.5,647.35,0.38]
[1749374302275,1.06622762,648.49,647.35,0.38]
[1749374302475,1.06622762,648.48,647.35,0.38]
[1749374302675,1.06622762,648.52,647.35,0.38]
[1749374302977,1.149,648.53,647.35,0.38]
[1749374302978,1.06622762,648.51,647.35,0.38]
[1749374303175,1.06622762,648.5,647.35,0.38]
[1749374303378,1.06622762,648.49,647.35,0.38]
[1749374303677,1.06622762,648.48,647.35,0.38]
[1749374303973,1.06622762,648.52,647.35,0.38]
[1749374304178,1.06622762,648.52,647.36,2.30071048]
[1749374304379,1.06622762,648.52,647.38,2.30071048]
[1749374304580,1.149,648.53,647.41,2.30071048]
[1749374305778,1.149,648.53,647.39,2.30071048]
[1749374305981,2.21522762,648.53,647.39,2.30071048]
[1749374306280,1.06622762,648.52,647.39,2.30071048]
[1749374306478,1.06622762,648.52,647.44,2.30071048]
[1749374306682,1.06622762,648.52,647.43,2.30071048]
[1749374307282,1.149,648.53,647.44,2.30071048]
[1749374307678,1.149,648.53,647.49,2.30071048]
[1749374308182,1.149,648.53,647.48,2.30071048]
[1749374308482,1.149,648.53,647.52,2.30071048]
[1749374309083,1.149,648.53,647.53,2.30071048]
[1749374309579,1.149,648.53,647.59,2.30071048]
[1749374311683,1.149,648.53,647.6,2.30071048]
[1749374312287,2.21522762,648.53,647.61,2.30071048]
[1749374312488,1.06622762,648.52,647.61,2.30071048]
[1749374312988,1.149,648.53,647.63,2.30071048]
[1749374313590,1.149,648.53,647.64,2.30071048]
[1749374314192,1.149,648.53,647.61,2.30071048]
[1749374314490,1.149,648.53,647.62,2.30071048]
[1749374314886,1.149,648.53,647.61,2.30071048]
[1749374315088,1.149,648.53,647.35,0.38]
[1749374315089,1.149,648.53,647.62,2.30071048]
[1749374315589,1.149,648.53,647.69,2.30071048]
[1749374315792,2.21522762,648.53,647.69,2.30071048]
[1749374315990,1.06622762,648.52,647.69,2.30071048]
[1749374316390,1.149,648.53,647.71,2.30071048]
[1749374318200,2.21522762,648.53,647.71,2.30071048]
[1749374318395,1.06622762,648.52,647.71,2.30071048]
[1749374318895,1.149,648.53,647.71,2.30071048]
[1749374319397,1.149,648.53,647.72,2.30071048]
[1749374320999,1.149,648.53,647.73,0.377]
[1749374322399,1.149,648.53,647.73,2.67771048]
[1749374322699,1.149,648.53,647.73,0.377]
[1749374325999,2.21522762,648.53,647.73,0.377]
[1749374326198,1.06622762,648.52,647.73,0.377]
[1749374326802,1.149,648.53,647.73,0.377]
[1749374328202,2.21522762,648.53,647.73,0.377]
[1749374328405,1.06622762,648.52,647.73,0.377]
[1749374328805,1.149,648.53,647.73,0.377]
[1749374329208,1.06622762,648.52,647.73,0.377]
[1749374330203,1.06622762,648.51,647.73,0.377]
[1749374330408,1.06622762,648.5,647.73,0.377]
[1749374330606,1.06622762,648.49,647.73,0.377]
[1749374330803,1.06622762,648.52,647.73,0.377]
[1749374331105,1.06622762,648.51,647.73,0.377]
[1749374331307,1.149,648.53,647.73,0.377]
[1749374331308,1.06622762,648.52,647.73,0.377]
[1749374331606,1.149,648.53,647.73,0.377]
[1749374334705,2.21522762,648.53,647.73,0.377]
[1749374334910,1.06622762,648.52,647.73,0.377]
[1749374336315,1.149,648.53,647.73,0.377]
[1749374336916,1.06622762,648.52,647.73,0.377]
[1749374337817,1.149,648.53,647.89,2.30071048]
[1749374338411,1.149,648.53,647.93,2.30071048]
[1749374339416,1.149,648.53,647.94,2.30071048]
[1749374341014,1.149,648.53,647.98,2.30071048]
[1749374341218,1.149,648.53,647.99,2.30071048]
[1749374341719,1.149,648.53,648.02,2.30071048]
[1749374341918,1.149,648.53,648.01,2.30071048]
[1749374342314,1.149,648.53,648.0,2.30071048]
[1749374342920,1.149,648.53,648.01,2.30071048]
[1749374343117,1.149,648.53,648.0,2.30071048]
[1749374343317,1.149,648.53,647.95,2.30071048]
[1749374344123,1.149,648.53,647.94,2.30071048]
[1749374345021,1.149,648.53,647.95,2.30071048]
[1749374345225,1.149,648.53,647.93,2.30071048]
[1749374345722,1.149,648.53,647.94,2.30071048]
[1749374346223,1.149,648.53,647.93,2.30071048]
[1749374346726,1.149,648.53,647.94,2.30071048]
[1749374347327,1.149,648.53,647.93,2.30071048]
[1749374348228,1.149,648.53,647.91,2.30071048]
[1749374349129,1.149,648.53,647.89,2.30071048]
[1749374349931,0.26825048,648.83,647.89,2.30071048]
[1749374350331,0.26825048,648.83,647.88,2.30071048]
[1749374351128,0.26825048,648.83,647.87,2.30071048]
[1749374351330,0.26825048,648.83,647.86,2.30071048]
[1749374351828,0.26825048,648.83,647.89,2.30071048]
[1749374352328,0.26825048,648.83,647.88,2.30071048]
[1749374352534,1.199,648.82,647.87,2.30071048]
[1749374352829,1.199,648.82,647.88,2.30071048]
[1749374353228,1.199,648.82,647.94,2.30071048]
[1749374353428,1.199,648.82,647.95,2.30071048]
[1749374353732,1.199,648.82,647.94,2.30071048]
[1749374355228,1.199,648.82,647.93,2.30071048]
[1749374355531,1.199,648.82,647.96,2.30071048]
[1749374356129,1.199,648.82,647.98,2.30071048]
[1749374356330,1.199,648.82,648.0,2.30071048]
[1749374356830,1.199,648.82,648.01,2.30071048]
[1749374357330,1.199,648.82,647.84,2.30071048]
[1749374357531,1.199,648.82,647.85,2.30071048]
[1749374358332,1.199,648.82,647.84,2.30071048]
[1749374359134,1.199,648.82,647.5,0.377]
[1749374359135,1.199,648.82,647.83,2.30071048]
[1749374359337,1.199,648.82,647.84,2.30071048]
[1749374359634,1.199,648.82,647.85,2.30071048]
[1749374360132,1.199,648.82,647.84,2.30071048]
[1749374361135,1.199,648.82,647.83,2.30071048]
[1749374361932,1.199,648.82,647.82,2.30071048]
[1749374363135,1.199,648.82,647.81,2.30071048]
[1749374363736,1.199,648.82,647.5,0.377]
[1749374363737,1.199,648.82,647.82,2.30071048]
[1749374363936,1.199,648.82,647.81,2.30071048]
[1749374364337,1.199,648.82,647.5,0.377]
[1749374364338,1.199,648.82,647.8,2.30071048]
[1749374366934,1.199,648.82,647.79,2.30071048]
[1749374367134,1.199,648.82,647.92,2.30071048]
[1749374367337,1.199,648.82,647.94,2.30071048]
[1749374367840,1.199,648.82,647.95,2.30071048]
[1749374368438,1.199,648.82,648.08,2.30071048]
[1749374368942,1.199,648.82,648.07,2.30071048]
[1749374369148,1.199,648.82,648.06,2.30071048]
[1749374369342,1.199,648.82,648.09,2.30071048]
[1749374369638,1.199,648.82,648.1,0.376]
[1749374369940,1.199,648.82,648.12,2.30071048]
[1749374370342,1.199,648.82,648.11,2.30071048]
[1749374370637,1.199,648.82,648.1,0.376]
[1749374374144,1.199,648.82,648.11,2.30071048]
[1749374374349,1.199,648.82,648.12,2.30071048]
[1749374374843,1.199,648.82,648.11,2.30071048]
[1749374375141,1.199,648.82,648.1,2.67671048]
[1749374375341,1.199,648.82,648.11,2.30071048]
[1749374377447,1.199,648.82,648.1,2.67671048]
[1749374378249,1.199,648.82,648.14,2.30071048]
[1749374380450,1.199,648.82,648.16,2.30071048]
[1749374381254,1.199,648.82,648.1,0.376]
[1749374381550,0.26825048,648.83,648.1,0.376]
[1749374382754,3.37482147,649.35,648.1,0.376]
[1749374383056,0.26824737,648.74,648.1,0.376]
[1749374383350,3.37505063,649.33,648.1,0.376]
[1749374383553,0.26824944,648.74,648.1,0.376]
[1749374383750,1.06306867,649.31,648.1,0.376]
[1749374383955,0.30800505,649.34,648.1,0.376]
[1749374384154,0.26825461,648.74,648.1,0.376]
[1749374384350,1.06306867,649.32,648.1,0.376]
[1749374384651,0.26825358,648.74,648.1,0.376]
[1749374384852,0.807,649.31,648.1,0.376]
[1749374385156,0.26825358,648.74,648.1,0.376]
[1749374385352,1.06306867,649.3,648.1,0.376]
[1749374385756,0.26825668,648.74,648.1,0.376]
[1749374385955,0.807,649.31,648.1,0.376]
[1749374386152,0.26825461,648.74,648.1,0.376]
[1749374386552,1.87006867,649.31,648.1,0.376]
[1749374386754,0.26825358,648.74,648.1,0.376]
[1749374386955,1.06306867,649.3,648.1,0.376]
[1749374387158,1.37109269,649.3,648.1,0.376]
[1749374387360,0.26827012,648.67,648.1,0.376]
[1749374387557,0.30802402,649.3,648.1,0.376]
[1749374387755,0.26826805,648.67,648.1,0.376]
[1749374388158,1.06306867,649.29,648.1,0.376]
[1749374388362,0.26827943,648.62,648.1,0.376]
[1749374388557,1.06306867,649.27,648.1,0.376]
[1749374388761,1.37111167,649.26,648.0,2.30071048]
[1749374389060,0.26828977,648.62,647.99,2.30071048]
[1749374389262,1.06306867,649.24,648.01,2.30071048]
[1749374389462,0.26829184,648.95,648.01,2.30071048]
[1749374389659,0.26829184,648.95,648.02,2.30071048]
[1749374390359,0.26829184,648.95,648.04,2.30071048]
[1749374391161,0.26829184,648.95,648.05,2.30071048]
[1749374391358,0.26829184,648.95,647.79,0.30874203]
[1749374391359,0.26829184,648.95,648.06,2.30071048]
[1749374392259,0.26829184,648.95,648.08,2.30071048]
[1749374392762,0.26829184,648.95,648.09,0.376]
[1749374393260,0.26829184,648.95,648.11,2.30071048]
[1749374394361,0.26829184,648.95,648.09,0.376]
[1749374394362,0.26829184,648.95,648.15,2.30071048]
[1749374394661,0.26829184,648.95,648.09,0.376]
[1749374394662,0.26829184,648.95,648.16,2.30071048]
[1749374394863,0.26829184,648.95,648.14,2.30071048]
[1749374395066,0.26829184,648.95,648.15,2.30071048]
[1749374395267,0.26829184,648.95,648.16,2.30071048]
[1749374395767,0.26829184,648.95,648.18,2.30071048]
[1749374396166,0.26829184,648.95,648.2,2.30071048]
[1749374396462,0.26829184,648.95,648.21,2.30071048]
[1749374397167,0.26829184,648.95,648.23,2.30071048]
[1749374397363,0.26829184,648.95,648.25,2.30071048]
[1749374397867,0.26829184,648.95,648.26,2.30071048]
[1749374398368,0.26829184,648.95,648.27,2.30071048]
[1749374399263,0.26829184,648.95,648.29,2.30071048]
[1749374399967,0.26829184,648.95,648.28,2.30071048]
[1749374400763,0.26829184,648.95,648.33,2.30071048]
[1749374401267,0.26829184,648.95,648.34,2.30071048]
[1749374401464,0.26829184,648.95,648.35,2.30071048]
[1749374401866,0.30805723,649.23,648.35,2.30071048]
[1749374402267,0.26823187,649.02,648.36,2.30071048]
[1749374402665,0.26823187,649.02,648.42,2.30071048]
[1749374403268,0.26823187,649.02,648.43,2.30071048]
[1749374403467,0.26823187,649.02,648.42,2.30071048]
[1749374403665,0.26823187,649.02,648.45,2.30071048]
[1749374403970,0.26823187,649.02,648.44,2.30071048]
[1749374404267,0.26823187,649.02,648.31,2.30071048]
[1749374404966,0.26823187,649.02,648.32,2.30071048]
[1749374406266,0.26823187,649.02,648.33,2.30071048]
[1749374406772,0.26823187,649.02,648.37,2.30071048]
[1749374407666,0.26823187,649.02,648.38,2.30071048]
[1749374409169,0.26823187,649.02,648.39,2.30071048]
[1749374409774,0.26823187,649.02,648.38,2.30071048]
[1749374410471,0.26823187,649.02,648.39,2.30071048]
[1749374410871,0.26823187,649.02,648.45,2.30071048]
[1749374412374,0.26823187,649.02,648.46,2.30071048]
[1749374412780,0.26823187,649.02,648.43,2.30071048]
[1749374413679,0.26823187,649.02,648.42,2.30071048]
[1749374414277,0.26823187,649.02,648.41,2.30071048]
[1749374415081,0.26823187,649.02,648.42,0.376]
[1749374417181,1.06306867,649.01,648.42,0.376]
[1749374417478,1.06306867,649.0,648.42,0.376]
[1749374417676,1.06306867,649.01,648.42,0.376]
[1749374417881,1.06306867,649.0,648.42,0.376]
[1749374418077,1.06306867,648.99,648.42,0.376]
[1749374418281,1.06306867,649.01,648.42,0.376]
[1749374418581,1.06306867,649.0,648.42,0.376]
[1749374418779,1.06306867,648.99,648.42,0.376]
[1749374419076,1.06306867,648.98,648.42,0.376]
[1749374419278,1.06306867,649.01,648.42,0.376]
[1749374419577,1.06306867,649.0,648.42,0.376]
[1749374419782,1.06306867,648.99,648.42,0.376]
[1749374419977,1.06306867,648.98,648.42,0.376]
[1749374420179,1.06306867,648.97,648.42,0.376]
[1749374420376,0.26823187,649.02,648.42,0.376]
[1749374420377,1.06306867,649.01,648.42,0.376]
[1749374420579,1.06306867,649.0,648.42,0.376]
[1749374420783,1.06306867,648.99,648.42,0.376]
[1749374420981,0.26823187,649.02,648.42,0.376]
[1749374420982,1.06306867,648.98,648.42,0.376]
[1749374421181,1.06306867,648.97,648.42,0.376]
[1749374421379,1.06306867,648.96,648.42,0.376]
[1749374421576,1.06306867,648.95,648.42,0.376]
[1749374421779,1.06306867,649.01,648.42,0.376]
[1749374421977,1.06306867,649.0,648.42,0.376]
[1749374422179,1.06306867,648.99,648.42,0.376]
[1749374422381,1.06306867,648.98,648.42,0.376]
[1749374422582,1.06306867,648.97,648.42,0.376]
[1749374422782,1.06306867,648.96,648.42,0.376]
[1749374422982,1.06306867,648.95,648.42,0.376]
[1749374423178,1.06306867,648.94,648.42,0.376]
[1749374423383,1.06306867,648.93,648.42,0.376]
[1749374423683,1.06306867,649.01,648.42,0.376]
[1749374423883,1.06306867,649.0,648.42,0.376]
[1749374424079,1.06306867,648.99,648.42,0.376]
[1749374424280,1.06306867,648.98,648.42,0.376]
[1749374424479,1.06306867,648.97,648.42,0.376]
[1749374424685,1.06306867,648.96,648.42,0.376]
[1749374424979,1.06306867,648.95,648.42,0.376]
[1749374425179,1.06306867,648.94,648.42,0.376]
[1749374425378,1.06306867,648.93,648.42,0.376]
[1749374425583,1.06306867,648.92,648.42,0.376]
[1749374425784,1.06306867,648.91,648.42,0.376]
[1749374425985,1.06306867,648.9,648.42,0.376]
[1749374426282,0.26823187,649.02,648.42,0.376]
[1749374426283,1.06306867,648.89,648.42,0.376]
[1749374426486,1.06306867,649.01,648.42,0.376]
[1749374426689,1.06306867,649.0,648.42,0.376]
[1749374426883,1.06306867,648.99,648.42,0.376]
[1749374427088,1.06306867,648.98,648.36,2.30071048]
[1749374427290,1.06948375,648.97,648.37,2.30071048]
[1749374427489,1.06948375,648.96,648.37,2.30071048]
[1749374427690,1.06948375,648.95,648.36,2.30071048]
[1749374427985,1.06948375,648.94,648.36,2.30071048]
[1749374428186,1.06948375,648.93,648.37,2.30071048]
[1749374428387,1.06948375,648.92,648.35,2.30071048]
[1749374428688,1.06948375,648.91,648.33,2.30071048]
[1749374428887,1.06948375,648.9,648.33,2.30071048]
[1749374429084,1.06948375,648.89,648.33,2.30071048]
[1749374429289,1.06948375,648.88,648.33,2.30071048]
[1749374429489,1.06948375,648.87,648.33,2.30071048]
[1749374429790,1.06948375,649.01,648.33,2.30071048]
[1749374429989,1.06948375,649.0,648.33,2.30071048]
[1749374430185,1.06948375,648.99,648.33,2.30071048]
[1749374430386,1.06948375,648.98,648.33,2.30071048]
[1749374430692,1.06948375,648.97,648.33,2.30071048]
[1749374430987,1.06948375,648.96,648.33,2.30071048]
[1749374431188,1.06948375,648.95,648.34,0.376]
[1749374431386,1.06948375,648.94,648.34,0.376]
[1749374431591,1.06948375,648.93,648.34,0.376]
[1749374431785,1.06948375,648.92,648.34,0.376]
[1749374431990,1.06948375,648.91,648.34,0.376]
[1749374432291,1.06948375,648.9,648.34,0.376]
[1749374432590,1.06948375,648.89,648.34,0.376]
[1749374432791,1.06948375,648.88,648.34,0.376]
[1749374432991,1.06948375,649.01,648.34,0.376]
[1749374433188,1.06948375,649.0,648.34,2.67671048]
[1749374433391,1.06948375,648.99,648.34,2.67671048]
[1749374433590,1.06948375,648.98,648.34,2.67671048]
[1749374433792,1.06948375,648.97,648.34,2.67671048]
[1749374433990,1.06948375,648.96,648.35,2.30071048]
[1749374434196,1.06948375,648.95,648.35,2.30071048]
[1749374434394,1.06948375,648.94,648.34,2.67671048]
[1749374434591,1.06948375,648.93,648.34,2.67671048]
[1749374434796,1.06948375,648.92,648.35,2.30071048]
[1749374434997,1.06948375,648.91,648.34,2.67671048]
[1749374435297,1.06948375,648.9,648.34,2.67671048]
[1749374435492,1.06948375,648.89,648.34,2.67671048]
[1749374435693,1.06948375,648.88,648.34,2.67671048]
[1749374435997,1.06948375,649.01,648.34,2.67671048]
[1749374436297,1.06948375,649.0,648.34,0.376]
[1749374436595,1.06948375,648.99,648.34,0.376]
[1749374436796,1.06948375,648.98,648.34,0.376]
[1749374436991,1.06948375,648.97,648.34,0.376]
[1749374437194,1.06948375,648.96,648.34,0.376]
[1749374437394,1.06948375,648.95,648.34,0.376]
[1749374437694,1.06948375,648.94,648.34,0.376]
[1749374437893,1.06948375,648.93,648.34,0.376]
[1749374438093,1.06948375,648.92,648.34,0.376]
[1749374438292,1.06948375,648.91,648.34,0.376]
[1749374438497,1.06948375,648.9,648.34,0.376]
[1749374438696,1.06948375,648.89,648.34,0.376]
[1749374438895,1.06948375,648.88,648.34,0.376]
[1749374439098,1.06948375,648.87,648.34,0.376]
[1749374439299,1.06948375,648.86,648.34,0.376]
[1749374439498,1.06948375,648.85,648.34,0.376]
[1749374439795,1.06948375,648.84,648.34,0.376]
[1749374439995,1.06948375,648.83,648.34,0.376]
[1749374440199,1.06948375,648.82,648.34,0.376]
[1749374440397,1.06948375,648.98,648.34,0.376]
[1749374440602,1.06948375,648.97,648.34,0.376]
[1749374440896,1.06948375,648.96,648.34,0.376]
[1749374441097,1.14921314,648.99,648.34,0.376]
[1749374441098,1.06948375,648.95,648.34,0.376]
[1749374441397,1.06948375,648.94,648.34,0.376]
[1749374441601,1.06948375,648.93,648.34,0.376]
[1749374441798,1.06948375,648.92,648.34,0.376]
[1749374441997,1.06948375,648.91,648.34,0.376]
[1749374442201,1.06948375,648.9,648.34,0.376]
[1749374442499,1.06948375,648.89,648.34,0.376]
[1749374442799,1.85548375,648.88,648.34,0.376]
[1749374442997,1.06948375,648.87,648.34,0.376]
[1749374443297,1.06948375,648.86,648.34,0.376]
[1749374443600,1.06948375,648.85,648.34,0.376]
[1749374443901,1.06948375,648.87,648.34,0.376]
[1749374444097,1.06948375,648.86,648.34,0.376]
[1749374444300,1.06948375,648.85,648.34,0.376]
[1749374444498,1.06948375,648.87,648.34,0.376]
[1749374444705,1.06948375,648.86,648.34,0.376]
[1749374444903,1.06948375,648.85,648.34,0.376]
[1749374445104,1.06948375,648.87,648.34,0.376]
[1749374445402,1.06948375,648.86,648.34,0.376]
[1749374445603,1.06948375,648.85,648.34,0.376]
[1749374445800,1.06948375,648.84,648.34,0.376]
[1749374446002,1.06948375,648.83,648.34,0.376]
[1749374446201,1.06948375,648.87,648.34,0.376]
[1749374446400,1.06948375,648.86,648.34,0.376]
[1749374446704,1.06948375,648.85,648.34,0.376]
[1749374446901,1.06948375,648.84,648.34,0.376]
[1749374447105,1.06948375,648.87,648.34,0.376]
[1749374447401,1.06948375,648.86,648.34,0.376]
[1749374447602,1.06948375,648.85,648.34,0.376]
[1749374447806,1.06948375,648.84,648.34,0.376]
[1749374448002,1.06948375,648.87,648.34,0.376]
[1749374448206,1.06948375,648.86,648.34,0.376]
[1749374448401,1.06948375,648.85,648.34,0.376]
[1749374448606,1.06948375,648.87,648.34,0.376]
[1749374448902,1.06948375,648.86,648.34,0.376]
[1749374449203,1.06948375,648.87,648.34,0.376]
[1749374449507,1.06948375,648.86,648.34,0.376]
[1749374449703,1.06948375,648.87,648.34,0.376]
[1749374449906,1.06948375,648.86,648.34,0.376]
[1749374450203,1.06948375,648.87,648.34,0.376]
[1749374451604,1.06948375,648.86,648.34,0.376]
[1749374451902,1.06948375,648.87,648.34,0.376]
[1749374454210,1.06948375,648.87,648.16,2.30071048]
[1749374454413,0.786,648.88,648.15,2.30071048]
[1749374454611,0.786,648.88,648.16,2.30071048]
[1749374455412,0.786,648.88,647.79,0.30874203]
[1749374455413,0.786,648.88,648.18,2.30071048]
[1749374455813,0.786,648.88,648.19,2.30071048]
[1749374456516,1.85548375,648.88,648.19,2.30071048]
[1749374456718,1.06948375,648.87,648.19,2.30071048]
[1749374457213,1.06948375,648.99,648.2,0.376]
[1749374457513,1.14921314,648.92,648.2,0.376]
[1749374457713,1.06948375,648.91,648.2,0.376]
[1749374457917,1.06948375,648.9,648.2,0.376]
[1749374458112,1.06948375,648.89,648.2,0.376]
[1749374458317,1.06948375,648.88,648.2,0.376]
[1749374458513,1.06948375,648.87,648.2,0.376]
[1749374458813,1.06948375,648.86,648.2,0.376]
[1749374459117,1.06948375,648.85,648.2,0.376]
[1749374459312,1.06948375,648.84,648.2,0.376]
[1749374459516,1.06948375,648.83,648.2,0.376]
[1749374459713,1.06948375,648.82,648.2,0.376]
[1749374459917,1.06948375,648.81,648.2,0.376]
[1749374460117,1.06948375,648.8,648.2,0.376]
[1749374461615,0.966,648.81,648.2,0.376]
[1749374464020,1.06948375,648.8,648.2,0.376]
[1749374464621,0.966,648.81,648.2,0.376]
[1749374466521,2.03548375,648.81,648.2,0.376]
[1749374466724,1.06948375,648.8,648.2,0.376]
[1749374467119,0.966,648.81,648.2,0.376]
[1749374469221,2.03548375,648.81,648.2,0.376]
[1749374469423,1.06948375,648.8,648.2,0.376]
[1749374469825,0.966,648.81,648.2,0.376]
[1749374471625,2.03548375,648.81,648.2,0.376]
[1749374471921,1.06948375,648.8,648.2,0.376]
[1749374472425,0.966,648.81,648.2,0.376]
[1749374474128,1.06948375,648.8,648.2,0.376]
[1749374474328,1.06948375,648.79,648.2,0.376]
[1749374474530,1.06948375,648.8,648.2,0.376]
[1749374474730,1.06948375,648.79,648.2,0.376]
[1749374474924,1.06948375,648.8,648.2,0.376]
[1749374475126,1.06948375,648.79,648.2,0.376]
[1749374475325,1.06948375,648.78,648.2,0.376]
[1749374475527,1.06948375,648.8,648.2,0.376]
[1749374475830,1.06948375,648.79,648.2,0.376]
[1749374476026,1.06948375,648.78,648.2,0.376]
[1749374476230,1.06948375,648.77,648.2,0.376]
[1749374476427,1.06948375,648.76,648.2,0.376]
[1749374476726,1.06948375,648.75,648.2,0.376]
[1749374476929,1.06948375,648.74,648.2,0.376]
[1749374477130,1.06948375,648.73,648.2,0.376]
[1749374477429,1.06948375,648.72,648.2,0.376]
[1749374477625,1.06948375,648.8,648.2,0.376]
[1749374477929,1.06948375,648.79,648.2,0.376]
[1749374478129,1.06948375,648.78,648.2,0.376]
[1749374478324,1.06948375,648.77,648.2,0.376]
[1749374478528,1.06948375,648.76,648.2,0.376]
[1749374478724,1.06948375,648.75,648.2,0.376]
[1749374478926,1.06948375,648.74,648.2,0.376]
[1749374479126,1.06948375,648.73,648.2,0.376]
[1749374479429,1.06948375,648.72,648.2,0.376]
[1749374479629,1.06948375,648.79,648.2,0.376]
[1749374479929,1.06948375,648.78,648.2,0.376]
[1749374480228,1.06948375,648.77,648.2,0.376]
[1749374480425,1.06948375,648.76,648.2,0.376]
[1749374480629,1.06948375,648.75,648.2,0.376]
[1749374480832,1.06948375,648.74,648.2,0.376]
[1749374481128,1.06948375,648.73,648.2,0.376]
[1749374481329,1.06948375,648.79,648.2,0.376]
[1749374481529,1.06948375,648.78,648.2,0.376]
[1749374481733,1.06948375,648.77,648.2,0.376]
[1749374481930,1.06948375,648.76,648.2,0.376]
[1749374482133,1.06948375,648.75,648.2,0.376]
[1749374482332,1.06948375,648.74,648.2,0.376]
[1749374482629,1.06948375,648.73,648.2,0.376]
[1749374482835,1.06948375,648.72,648.2,0.376]
[1749374483033,1.06948375,648.71,648.2,0.376]
[1749374483234,1.06948375,648.7,648.2,0.376]
[1749374483429,0.3082614,648.8,648.2,0.376]
[1749374483430,1.06948375,648.69,648.2,0.376]
[1749374483633,1.06948375,648.68,648.2,0.376]
[1749374483832,1.06948375,648.67,648.2,0.376]
[1749374484134,1.06948375,648.66,648.2,0.376]
[1749374484332,0.813,648.69,648.2,0.376]
[1749374484333,1.06948375,648.68,648.2,0.376]
[1749374485233,1.06948375,648.67,647.79,0.30874203]
[1749374485433,1.06948375,648.68,647.79,0.30874203]
[1749374487134,0.813,648.69,647.79,0.30874203]
[1749374488335,0.813,648.69,647.8,0.376]
[1749374489342,1.87953499,648.69,647.8,0.376]
[1749374489540,1.06653499,648.68,647.8,0.376]
[1749374490039,0.813,648.69,647.8,0.376]
[1749374491344,1.06653499,648.68,647.8,0.376]
[1749374491743,1.06653499,648.68,647.88,2.30071048]
[1749374492245,0.813,648.69,647.89,2.30071048]
[1749374493640,0.813,648.69,647.92,2.30071048]
[1749374494246,1.87953499,648.69,647.96,2.30071048]
[1749374494444,1.06653499,648.68,647.96,2.30071048]
[1749374494845,0.813,648.69,647.96,2.30071048]
[1749374495243,0.813,648.69,647.97,2.30071048]
[1749374495443,0.813,648.69,647.96,2.30071048]
[1749374495645,0.813,648.69,647.97,2.30071048]
[1749374496948,1.87953499,648.69,647.97,2.30071048]
[1749374497143,1.06653499,648.68,647.97,2.30071048]
[1749374497545,0.813,648.69,647.97,2.30071048]
[1749374499868,1.87953499,648.69,647.97,2.30071048]
[1749374500045,1.06653499,648.68,647.97,2.30071048]
[1749374500549,1.06653499,648.79,647.84,2.30071048]
[1749374500751,1.06653499,648.78,647.84,2.30071048]
[1749374500951,1.06653499,648.78,647.8,0.376]
[1749374500952,1.06653499,648.77,647.83,2.30071048]
[1749374501248,1.06653499,648.76,647.87,2.30071048]
[1749374501450,1.06653499,648.79,647.88,2.30071048]
[1749374501748,1.06653499,648.78,647.88,2.30071048]
[1749374501946,1.06653499,648.77,647.88,2.30071048]
[1749374502246,1.06653499,648.79,647.88,2.30071048]
[1749374502451,1.06653499,648.78,647.88,2.30071048]
[1749374502651,1.06653499,648.77,647.88,2.30071048]
[1749374502852,1.06653499,648.76,647.88,2.30071048]
[1749374503046,1.06653499,648.79,647.88,2.30071048]
[1749374503247,1.06653499,648.78,647.88,2.30071048]
[1749374503548,1.06653499,648.77,647.88,2.30071048]
[1749374503851,1.06653499,648.77,647.8,0.376]
[1749374503852,1.06653499,648.76,647.89,2.30071048]
[1749374504152,1.117,648.75,647.89,2.30071048]
[1749374504451,1.117,648.75,647.8,0.376]
[1749374504452,1.06653499,648.74,647.85,2.30071048]
[1749374504754,1.06653499,648.73,647.86,2.30071048]
[1749374504947,1.06653499,648.72,647.86,2.30071048]